[Event "Titled Tuesday Blitz August 22 Late 2023"]
[White "Leebit02"]
[Black "GAO"]
[WhiteElo "2576"]
[BlackElo "2264"]
[Result "1/2-1/2"]
[Round "1"]
[TimeControl "180+1"]
[Date "2023.08.22"]
[WhiteClock "0:00:10"]
[BlackClock "0:00:05"]
[Board "174"]

1. e4 {[%clk 0:03:00]}  c5 {[%clk 0:02:58]} 2. Nf3 {[%clk 0:03:00]}  Nc6 {[%clk 0:02:59]} 3. d4 {[%clk 0:02:56]}  cxd4 {[%clk 0:02:59]} 4. Nxd4 {[%clk 0:02:57]}  g6 {[%clk 0:02:59]} 5. c4 {[%clk 0:02:56]}  Bg7 {[%clk 0:02:58]} 6. Be3 {[%clk 0:02:57]}  Qb6 {[%clk 0:02:57]} 7. Nb3 {[%clk 0:02:50]}  Qd8 {[%clk 0:02:56]} 8. Nc3 {[%clk 0:02:51]}  Bxc3+ {[%clk 0:02:54]} 9. bxc3 {[%clk 0:02:51]}  Nf6 {[%clk 0:02:55]} 10. f3 {[%clk 0:02:47]}  d6 {[%clk 0:02:50]} 11. Be2 {[%clk 0:02:43]}  O-O {[%clk 0:02:49]} 12. O-O {[%clk 0:02:43]}  Be6 {[%clk 0:02:49]} 13. c5 {[%clk 0:02:38]}  d5 {[%clk 0:02:48]} 14. Bh6 {[%clk 0:02:12]}  Re8 {[%clk 0:02:46]} 15. exd5 {[%clk 0:02:11]}  Qxd5 {[%clk 0:02:31]} 16. Qc1 {[%clk 0:02:03]}  Rad8 {[%clk 0:02:13]} 17. Rd1 {[%clk 0:01:40]}  Qe5 {[%clk 0:02:07]} 18. Qe3 {[%clk 0:01:22]}  Qxe3+ {[%clk 0:02:02]} 19. Bxe3 {[%clk 0:01:23]}  Nd5 {[%clk 0:02:01]} 20. Bd2 {[%clk 0:01:20]}  Bc8 {[%clk 0:01:51]} 21. Rab1 {[%clk 0:01:16]}  e5 {[%clk 0:01:48]} 22. Kf2 {[%clk 0:01:15]}  Kg7 {[%clk 0:01:45]} 23. a3 {[%clk 0:01:10]}  f6 {[%clk 0:01:45]} 24. c4 {[%clk 0:01:10]}  Nde7 {[%clk 0:01:42]} 25. Bc3 {[%clk 0:01:07]}  Nf5 {[%clk 0:01:41]} 26. Bd3 {[%clk 0:00:58]}  Nfd4 {[%clk 0:01:32]} 27. Nxd4 {[%clk 0:00:55]}  exd4 {[%clk 0:01:26]} 28. Bd2 {[%clk 0:00:51]}  Re5 {[%clk 0:01:20]} 29. Bb4 {[%clk 0:00:47]}  a5 {[%clk 0:01:17]} 30. Bd2 {[%clk 0:00:45]}  Rxc5 {[%clk 0:01:18]} 31. Rb5 {[%clk 0:00:45]}  Rxb5 {[%clk 0:01:15]} 32. cxb5 {[%clk 0:00:46]}  Ne5 {[%clk 0:01:16]} 33. Bf1 {[%clk 0:00:46]}  Bf5 {[%clk 0:01:09]} 34. Bxa5 {[%clk 0:00:45]}  Ra8 {[%clk 0:00:56]} 35. Bb4 {[%clk 0:00:44]}  d3 {[%clk 0:00:52]} 36. g4 {[%clk 0:00:44]}  Bd7 {[%clk 0:00:51]} 37. Bxd3 {[%clk 0:00:34]}  Nxd3+ {[%clk 0:00:50]} 38. Rxd3 {[%clk 0:00:35]}  Bxb5 {[%clk 0:00:51]} 39. Rd6 {[%clk 0:00:35]}  Re8 {[%clk 0:00:43]} 40. Bc3 {[%clk 0:00:33]}  Re2+ {[%clk 0:00:28]} 41. Kg3 {[%clk 0:00:34]}  Kf7 {[%clk 0:00:24]} 42. Rxf6+ {[%clk 0:00:31]}  Ke7 {[%clk 0:00:24]} 43. Rf4 {[%clk 0:00:26]}  Bc6 {[%clk 0:00:20]} 44. Bb4+ {[%clk 0:00:26]}  Ke6 {[%clk 0:00:17]} 45. h4 {[%clk 0:00:27]}  Bd5 {[%clk 0:00:13]} 46. Rf8 {[%clk 0:00:26]}  Kd7 {[%clk 0:00:09]} 47. Kf4 {[%clk 0:00:18]}  Re8 {[%clk 0:00:08]} 48. Rxe8 {[%clk 0:00:15]}  Kxe8 {[%clk 0:00:09]} 49. Ke3 {[%clk 0:00:13]}  Kd7 {[%clk 0:00:09]} 50. f4 {[%clk 0:00:13]}  Ke6 {[%clk 0:00:10]} 51. Kd4 {[%clk 0:00:09]}  Bf3 {[%clk 0:00:10]} 52. g5 {[%clk 0:00:10]}  Bc6 {[%clk 0:00:10]} 53. Ke3 {[%clk 0:00:10]}  Kf5 {[%clk 0:00:11]} 54. Bf8 {[%clk 0:00:10]}  Kg4 {[%clk 0:00:11]} 55. Bd6 {[%clk 0:00:08]}  Kxh4 {[%clk 0:00:10]} 56. Kd4 {[%clk 0:00:08]}  Kg4 {[%clk 0:00:06]} 57. Ke5 {[%clk 0:00:08]}  Kh5 {[%clk 0:00:05]} 58. Kf6 {[%clk 0:00:09]}  h6 {[%clk 0:00:04]} 59. gxh6 {[%clk 0:00:06]}  Kxh6 {[%clk 0:00:05]} 60. Ke5 {[%clk 0:00:03]}  Kh5 {[%clk 0:00:05]} 61. Kd4 {[%clk 0:00:04]}  Bf3 {[%clk 0:00:05]} 62. Kc5 {[%clk 0:00:04]}  Kg4 {[%clk 0:00:05]} 63. a4 {[%clk 0:00:05]}  Kf5 {[%clk 0:00:04]} 64. Kb6 {[%clk 0:00:05]}  Bh1 {[%clk 0:00:04]} 65. a5 {[%clk 0:00:05]}  Bg2 {[%clk 0:00:04]} 66. Kc7 {[%clk 0:00:05]}  Bf3 {[%clk 0:00:04]} 67. Kd7 {[%clk 0:00:06]}  Be4 {[%clk 0:00:04]} 68. Ke7 {[%clk 0:00:07]}  Bf3 {[%clk 0:00:04]} 69. Kf7 {[%clk 0:00:07]}  Bd5+ {[%clk 0:00:04]} 70. Ke7 {[%clk 0:00:07]}  Bf3 {[%clk 0:00:05]} 71. Kd7 {[%clk 0:00:07]}  Be4 {[%clk 0:00:05]} 72. Kc7 {[%clk 0:00:08]}  Bd5 {[%clk 0:00:05]} 73. Kb6 {[%clk 0:00:08]}  Be4 {[%clk 0:00:05]} 74. Kc7 {[%clk 0:00:09]}  Bd5 {[%clk 0:00:05]} 75. Kb6 {[%clk 0:00:10]}  Be4 {[%clk 0:00:05]} 76. Kc7 {[%clk 0:00:10]} 1/2-1/2


[Site "https://www.chess.com"]

[Event "Titled Tuesday Blitz August 22 Late 2023"]
[White "Fernandez Bustamante, Leancy B."]
[Black "luksona14"]
[WhiteFideId "3523870"]
[WhiteElo "2257"]
[BlackElo "2576"]
[Result "0-1"]
[Round "1"]
[TimeControl "180+1"]
[Date "2023.08.22"]
[WhiteClock "0:00:13"]
[BlackClock "0:01:59"]
[Board "175"]

1. e4 {[%clk 0:02:57]}  d6 {[%clk 0:02:58]} 2. Nf3 {[%clk 0:02:56]}  g6 {[%clk 0:02:58]} 3. Nc3 {[%clk 0:02:55]}  Bg7 {[%clk 0:02:58]} 4. d4 {[%clk 0:02:55]}  a6 {[%clk 0:02:59]} 5. Bg5 {[%clk 0:02:55]}  b5 {[%clk 0:02:59]} 6. a3 {[%clk 0:02:54]}  Bb7 {[%clk 0:02:58]} 7. Qd2 {[%clk 0:02:53]}  h6 {[%clk 0:02:58]} 8. Bf4 {[%clk 0:02:52]}  e6 {[%clk 0:02:58]} 9. O-O-O {[%clk 0:02:51]}  Ne7 {[%clk 0:02:58]} 10. Be2 {[%clk 0:02:46]}  Nd7 {[%clk 0:02:58]} 11. h4 {[%clk 0:02:31]}  Nb6 {[%clk 0:02:55]} 12. e5 {[%clk 0:02:29]}  d5 {[%clk 0:02:51]} 13. h5 {[%clk 0:02:20]}  g5 {[%clk 0:02:51]} 14. Nxg5 {[%clk 0:02:17]}  hxg5 {[%clk 0:02:48]} 15. Bxg5 {[%clk 0:02:18]}  Nc4 {[%clk 0:02:48]} 16. Bxc4 {[%clk 0:02:13]}  dxc4 {[%clk 0:02:49]} 17. h6 {[%clk 0:02:13]}  Bf8 {[%clk 0:02:49]} 18. Qf4 {[%clk 0:02:08]}  Qd7 {[%clk 0:02:43]} 19. h7 {[%clk 0:02:01]}  Ng6 {[%clk 0:02:42]} 20. Qe3 {[%clk 0:01:48]}  Be7 {[%clk 0:02:40]} 21. Kb1 {[%clk 0:01:35]}  O-O-O {[%clk 0:02:40]} 22. f4 {[%clk 0:01:29]}  Bxg5 {[%clk 0:02:32]} 23. fxg5 {[%clk 0:01:30]}  Bxg2 {[%clk 0:02:25]} 24. Rh2 {[%clk 0:01:27]}  Bb7 {[%clk 0:02:25]} 25. Ne2 {[%clk 0:01:26]}  c5 {[%clk 0:02:21]} 26. c3 {[%clk 0:01:24]}  Qd5 {[%clk 0:02:20]} 27. Ka1 {[%clk 0:01:08]}  Qf3 {[%clk 0:02:18]} 28. Qd2 {[%clk 0:01:01]}  Be4 {[%clk 0:02:12]} 29. Qe1 {[%clk 0:00:51]}  Bd3 {[%clk 0:02:08]} 30. Rf2 {[%clk 0:00:50]}  Qe3 {[%clk 0:02:08]} 31. Rd2 {[%clk 0:00:37]}  Rxh7 {[%clk 0:02:07]} 32. Rf1 {[%clk 0:00:25]}  cxd4 {[%clk 0:02:04]} 33. cxd4 {[%clk 0:00:24]}  Rh2 {[%clk 0:02:02]} 34. Rh1 {[%clk 0:00:20]}  Rxe2 {[%clk 0:02:01]} 35. Rxe2 {[%clk 0:00:17]}  Qxe2 {[%clk 0:02:01]} 36. Qa5 {[%clk 0:00:17]}  Qe4 {[%clk 0:01:58]} 37. Qxa6+ {[%clk 0:00:15]}  Qb7 {[%clk 0:01:59]} 38. Qa5 {[%clk 0:00:14]}  Qxh1+ {[%clk 0:01:59]} 39. Ka2 {[%clk 0:00:13]}  Qb1# {[%clk 0:01:59]} 0-1


[Site "https://www.chess.com"]

[Event "Titled Tuesday Blitz August 22 Late 2023"]
[White "Garcia-Castany Musellas, Gal.la"]
[Black "Guerra Tulcan, Lenin"]
[WhiteFideId "2241803"]
[BlackFideId "3601382"]
[WhiteElo "2254"]
[BlackElo "2574"]
[Result "1-0"]
[Round "1"]
[TimeControl "180+1"]
[Date "2023.08.22"]
[WhiteClock "0:00:23"]
[BlackClock "0:00:05"]
[Board "177"]

1. Nf3 {[%clk 0:03:00]}  c5 {[%clk 0:02:59]} 2. b3 {[%clk 0:02:54]}  e6 {[%clk 0:03:00]} 3. Bb2 {[%clk 0:02:55]}  b6 {[%clk 0:03:01]} 4. e3 {[%clk 0:02:53]}  Bb7 {[%clk 0:03:01]} 5. Be2 {[%clk 0:02:53]}  Nf6 {[%clk 0:03:02]} 6. O-O {[%clk 0:02:53]}  Be7 {[%clk 0:03:03]} 7. d4 {[%clk 0:02:53]}  O-O {[%clk 0:03:03]} 8. c4 {[%clk 0:02:53]}  d6 {[%clk 0:03:02]} 9. Nc3 {[%clk 0:02:53]}  Nbd7 {[%clk 0:03:02]} 10. d5 {[%clk 0:02:53]}  exd5 {[%clk 0:03:00]} 11. cxd5 {[%clk 0:02:54]}  Re8 {[%clk 0:03:00]} 12. h3 {[%clk 0:02:54]}  Bf8 {[%clk 0:03:00]} 13. Qd3 {[%clk 0:02:46]}  a6 {[%clk 0:02:57]} 14. a4 {[%clk 0:02:45]}  Qc7 {[%clk 0:02:50]} 15. Rac1 {[%clk 0:02:45]}  Rac8 {[%clk 0:02:49]} 16. Rfd1 {[%clk 0:02:43]}  Qb8 {[%clk 0:02:48]} 17. e4 {[%clk 0:02:37]}  b5 {[%clk 0:02:43]} 18. axb5 {[%clk 0:02:37]}  axb5 {[%clk 0:02:44]} 19. Qxb5 {[%clk 0:02:35]}  Nxe4 {[%clk 0:02:39]} 20. Nxe4 {[%clk 0:02:02]}  Rxe4 {[%clk 0:02:37]} 21. Bd3 {[%clk 0:01:58]}  Re7 {[%clk 0:02:32]} 22. Bf5 {[%clk 0:01:57]}  Rd8 {[%clk 0:02:18]} 23. Qd3 {[%clk 0:01:55]}  h6 {[%clk 0:02:07]} 24. Qd2 {[%clk 0:01:53]}  Nb6 {[%clk 0:01:48]} 25. Bc2 {[%clk 0:01:37]}  Bxd5 {[%clk 0:01:43]} 26. Nh4 {[%clk 0:01:38]}  Be4 {[%clk 0:01:39]} 27. Nf5 {[%clk 0:01:25]}  Bxf5 {[%clk 0:01:34]} 28. Bxf5 {[%clk 0:01:26]}  d5 {[%clk 0:01:34]} 29. Rxc5 {[%clk 0:01:23]}  d4 {[%clk 0:01:02]} 30. Rc6 {[%clk 0:01:08]}  Qb7 {[%clk 0:00:46]} 31. Rcc1 {[%clk 0:01:04]}  d3 {[%clk 0:00:40]} 32. Bxd3 {[%clk 0:00:59]}  Red7 {[%clk 0:00:40]} 33. Qe2 {[%clk 0:00:53]}  Nd5 {[%clk 0:00:30]} 34. Qe4 {[%clk 0:00:47]}  Nf6 {[%clk 0:00:15]} 35. Qxb7 {[%clk 0:00:42]}  Rxb7 {[%clk 0:00:16]} 36. Bxf6 {[%clk 0:00:41]}  gxf6 {[%clk 0:00:16]} 37. Bh7+ {[%clk 0:00:41]}  Kxh7 {[%clk 0:00:17]} 38. Rxd8 {[%clk 0:00:42]}  Ba3 {[%clk 0:00:15]} 39. Rc3 {[%clk 0:00:40]}  Bb2 {[%clk 0:00:15]} 40. Rf3 {[%clk 0:00:38]}  Be5 {[%clk 0:00:15]} 41. g3 {[%clk 0:00:38]}  Kg6 {[%clk 0:00:15]} 42. Kg2 {[%clk 0:00:38]}  h5 {[%clk 0:00:16]} 43. h4 {[%clk 0:00:39]}  Rb4 {[%clk 0:00:15]} 44. Rg8+ {[%clk 0:00:39]}  Kh7 {[%clk 0:00:14]} 45. Rc8 {[%clk 0:00:39]}  Kg6 {[%clk 0:00:15]} 46. Rc4 {[%clk 0:00:39]}  Rb5 {[%clk 0:00:15]} 47. b4 {[%clk 0:00:38]}  Bd6 {[%clk 0:00:15]} 48. Rb3 {[%clk 0:00:39]}  Kg7 {[%clk 0:00:13]} 49. Rd4 {[%clk 0:00:39]}  Be5 {[%clk 0:00:13]} 50. Rc4 {[%clk 0:00:37]}  Bd6 {[%clk 0:00:13]} 51. Rd3 {[%clk 0:00:35]}  Be5 {[%clk 0:00:11]} 52. f4 {[%clk 0:00:35]}  Bb8 {[%clk 0:00:09]} 53. Kf3 {[%clk 0:00:33]}  Kg6 {[%clk 0:00:09]} 54. Rb3 {[%clk 0:00:32]}  Bd6 {[%clk 0:00:09]} 55. Rd3 {[%clk 0:00:32]}  Bb8 {[%clk 0:00:08]} 56. Rd8 {[%clk 0:00:30]}  Ba7 {[%clk 0:00:07]} 57. Rd7 {[%clk 0:00:30]}  Bb6 {[%clk 0:00:07]} 58. Rb7 {[%clk 0:00:29]}  Kf5 {[%clk 0:00:06]} 59. Rc6 {[%clk 0:00:28]}  Rxb4 {[%clk 0:00:04]} 60. Rcxb6 {[%clk 0:00:28]}  Rc4 {[%clk 0:00:04]} 61. Rb5+ {[%clk 0:00:28]}  Kg6 {[%clk 0:00:04]} 62. Rb3 {[%clk 0:00:28]}  Rc1 {[%clk 0:00:04]} 63. R7b5 {[%clk 0:00:26]}  Rf1+ {[%clk 0:00:05]} 64. Kg2 {[%clk 0:00:27]}  Re1 {[%clk 0:00:05]} 65. Rb6 {[%clk 0:00:23]}  Kg7 {[%clk 0:00:04]} 66. Rc3 {[%clk 0:00:23]}  Re2+ {[%clk 0:00:05]} 67. Kf3 {[%clk 0:00:23]}  Re1 {[%clk 0:00:05]} 68. Rcc6 {[%clk 0:00:23]}  Rf1+ {[%clk 0:00:06]} 69. Kg2 {[%clk 0:00:23]}  Rc1 {[%clk 0:00:05]} 70. Rxc1 {[%clk 0:00:23]} 1-0


[Site "https://www.chess.com"]

[Event "Titled Tuesday Blitz August 22 Late 2023"]
[White "Dobrikov, Marco"]
[Black "Sarkar, Justin"]
[WhiteFideId "12950378"]
[BlackFideId "2010011"]
[WhiteElo "2574"]
[BlackElo "2253"]
[Result "1-0"]
[Round "1"]
[TimeControl "180+1"]
[Date "2023.08.22"]
[WhiteClock "0:02:02"]
[BlackClock "0:00:15"]
[Board "178"]

1. d4 {[%clk 0:02:57]}  Nf6 {[%clk 0:02:47]} 2. Bg5 {[%clk 0:02:56]}  b6 {[%clk 0:02:43]} 3. Bxf6 {[%clk 0:02:56]}  exf6 {[%clk 0:02:41]} 4. e4 {[%clk 0:02:56]}  Bb7 {[%clk 0:02:36]} 5. Nd2 {[%clk 0:02:53]}  Be7 {[%clk 0:02:25]} 6. Ngf3 {[%clk 0:02:51]}  O-O {[%clk 0:02:23]} 7. Bd3 {[%clk 0:02:50]}  c5 {[%clk 0:01:39]} 8. c3 {[%clk 0:02:46]}  cxd4 {[%clk 0:01:34]} 9. cxd4 {[%clk 0:02:47]}  d5 {[%clk 0:01:32]} 10. e5 {[%clk 0:02:47]}  Nc6 {[%clk 0:01:20]} 11. O-O {[%clk 0:02:44]}  fxe5 {[%clk 0:01:17]} 12. dxe5 {[%clk 0:02:38]}  Nb4 {[%clk 0:01:13]} 13. Nb3 {[%clk 0:02:33]}  Nxd3 {[%clk 0:01:07]} 14. Qxd3 {[%clk 0:02:33]}  a5 {[%clk 0:01:08]} 15. Rfd1 {[%clk 0:02:33]}  a4 {[%clk 0:01:03]} 16. Nbd4 {[%clk 0:02:32]}  Qd7 {[%clk 0:00:59]} 17. Nf5 {[%clk 0:02:19]}  Rac8 {[%clk 0:00:41]} 18. N3d4 {[%clk 0:02:16]}  Rfe8 {[%clk 0:00:37]} 19. Nxe7+ {[%clk 0:02:03]}  Rxe7 {[%clk 0:00:33]} 20. f4 {[%clk 0:02:04]}  Ba6 {[%clk 0:00:15]} 21. Qxa6 {[%clk 0:02:02]} 1-0


[Site "https://www.chess.com"]

[Event "Titled Tuesday Blitz August 22 Late 2023"]
[White "Kohler, Aran"]
[Black "Santos Flores, Alberto"]
[WhiteFideId "1002856"]
[BlackFideId "3601234"]
[WhiteElo "2253"]
[BlackElo "2574"]
[Result "0-1"]
[Round "1"]
[TimeControl "180+1"]
[Date "2023.08.22"]
[WhiteClock "0:00:21"]
[BlackClock "0:00:10"]
[Board "179"]

1. Nf3 {[%clk 0:02:59]}  d5 {[%clk 0:02:59]} 2. d4 {[%clk 0:02:59]}  Nf6 {[%clk 0:02:59]} 3. Bf4 {[%clk 0:02:59]}  c5 {[%clk 0:02:59]} 4. e3 {[%clk 0:02:59]}  Nc6 {[%clk 0:02:59]} 5. Nbd2 {[%clk 0:02:56]}  Qb6 {[%clk 0:02:57]} 6. Rb1 {[%clk 0:02:44]}  cxd4 {[%clk 0:02:54]} 7. exd4 {[%clk 0:02:43]}  Nxd4 {[%clk 0:02:53]} 8. Nxd4 {[%clk 0:02:39]}  Qxd4 {[%clk 0:02:54]} 9. Be3 {[%clk 0:02:33]}  Qa4 {[%clk 0:02:38]} 10. b3 {[%clk 0:02:18]}  Qa5 {[%clk 0:02:24]} 11. a4 {[%clk 0:02:15]}  Bd7 {[%clk 0:02:22]} 12. Bd3 {[%clk 0:02:13]}  e6 {[%clk 0:02:21]} 13. O-O {[%clk 0:02:13]}  Be7 {[%clk 0:02:15]} 14. Nf3 {[%clk 0:02:08]}  O-O {[%clk 0:02:02]} 15. Ne5 {[%clk 0:02:04]}  Bd6 {[%clk 0:01:53]} 16. Nxd7 {[%clk 0:01:59]}  Nxd7 {[%clk 0:01:54]} 17. Qh5 {[%clk 0:01:56]}  Nf6 {[%clk 0:01:53]} 18. Qh4 {[%clk 0:01:55]}  Be7 {[%clk 0:01:43]} 19. Bg5 {[%clk 0:01:51]}  h6 {[%clk 0:01:43]} 20. Bxh6 {[%clk 0:01:51]}  gxh6 {[%clk 0:01:41]} 21. Qxh6 {[%clk 0:01:51]}  d4 {[%clk 0:01:39]} 22. g4 {[%clk 0:01:36]}  Qd5 {[%clk 0:01:08]} 23. Rfe1 {[%clk 0:01:25]}  Qf3 {[%clk 0:00:45]} 24. h3 {[%clk 0:01:08]}  Bd6 {[%clk 0:00:44]} 25. g5 {[%clk 0:01:01]}  Qh5 {[%clk 0:00:21]} 26. Qxf6 {[%clk 0:00:55]}  Qxh3 {[%clk 0:00:21]} 27. f4 {[%clk 0:00:55]}  Qg3+ {[%clk 0:00:18]} 28. Kf1 {[%clk 0:00:55]}  Bxf4 {[%clk 0:00:17]} 29. Re2 {[%clk 0:00:53]}  Qh3+ {[%clk 0:00:15]} 30. Rg2 {[%clk 0:00:52]}  Rfd8 {[%clk 0:00:12]} 31. Qxf4 {[%clk 0:00:50]}  Rd5 {[%clk 0:00:12]} 32. Re1 {[%clk 0:00:47]}  Rc8 {[%clk 0:00:08]} 33. Kf2 {[%clk 0:00:47]}  Rcc5 {[%clk 0:00:06]} 34. Qg3 {[%clk 0:00:31]}  Qxg3+ {[%clk 0:00:05]} 35. Rxg3 {[%clk 0:00:31]}  Rxg5 {[%clk 0:00:05]} 36. Rxg5+ {[%clk 0:00:31]}  Rxg5 {[%clk 0:00:06]} 37. Rg1 {[%clk 0:00:31]}  Rxg1 {[%clk 0:00:07]} 38. Kxg1 {[%clk 0:00:31]}  f5 {[%clk 0:00:07]} 39. Kf2 {[%clk 0:00:31]}  Kf7 {[%clk 0:00:07]} 40. b4 {[%clk 0:00:24]}  Kf6 {[%clk 0:00:06]} 41. Bc4 {[%clk 0:00:23]}  e5 {[%clk 0:00:05]} 42. Bd5 {[%clk 0:00:22]}  b6 {[%clk 0:00:05]} 43. Kf3 {[%clk 0:00:22]}  Ke7 {[%clk 0:00:02]} 44. Ke2 {[%clk 0:00:19]}  Kd6 {[%clk 0:00:02]} 45. Kd3 {[%clk 0:00:20]}  Kxd5 {[%clk 0:00:02]} 46. c4+ {[%clk 0:00:20]}  dxc3 {[%clk 0:00:03]} 47. Kxc3 {[%clk 0:00:21]}  f4 {[%clk 0:00:04]} 48. Kd3 {[%clk 0:00:20]}  e4+ {[%clk 0:00:04]} 49. Kd2 {[%clk 0:00:20]}  Kd4 {[%clk 0:00:04]} 50. a5 {[%clk 0:00:20]}  bxa5 {[%clk 0:00:05]} 51. bxa5 {[%clk 0:00:20]}  e3+ {[%clk 0:00:05]} 52. Ke2 {[%clk 0:00:20]}  Ke4 {[%clk 0:00:06]} 53. a6 {[%clk 0:00:20]}  f3+ {[%clk 0:00:07]} 54. Ke1 {[%clk 0:00:20]}  Kd3 {[%clk 0:00:07]} 55. Kd1 {[%clk 0:00:20]}  e2+ {[%clk 0:00:07]} 56. Ke1 {[%clk 0:00:20]}  f2+ {[%clk 0:00:08]} 57. Kxf2 {[%clk 0:00:20]}  Kd2 {[%clk 0:00:09]} 58. Kf3 {[%clk 0:00:21]}  e1=Q {[%clk 0:00:10]} 59. Kf4 {[%clk 0:00:22]}  Qe3+ {[%clk 0:00:10]} 60. Kf5 {[%clk 0:00:22]}  Qb6 {[%clk 0:00:09]} 61. Ke5 {[%clk 0:00:22]}  Qxa6 {[%clk 0:00:10]} 62. Kd4 {[%clk 0:00:21]}  Qc6 {[%clk 0:00:10]} 0-1


[Site "https://www.chess.com"]

[Event "Titled Tuesday Blitz August 22 Late 2023"]
[White "Fajdetic, Hrvoje"]
[Black "Kochiev, Ivan"]
[WhiteFideId "14501945"]
[BlackFideId "2917890"]
[WhiteElo "2249"]
[BlackElo "2570"]
[Result "0-1"]
[Round "1"]
[TimeControl "180+1"]
[Date "2023.08.22"]
[WhiteClock "0:00:13"]
[BlackClock "0:00:47"]
[Board "181"]

1. d4 {[%clk 0:02:56]}  Nf6 {[%clk 0:03:00]} 2. Bf4 {[%clk 0:02:56]}  e6 {[%clk 0:02:57]} 3. e3 {[%clk 0:02:56]}  c5 {[%clk 0:02:57]} 4. Nd2 {[%clk 0:02:54]}  d5 {[%clk 0:02:57]} 5. Ngf3 {[%clk 0:02:53]}  Bd6 {[%clk 0:02:57]} 6. Bg3 {[%clk 0:02:52]}  Qc7 {[%clk 0:02:57]} 7. Ne5 {[%clk 0:02:51]}  Nc6 {[%clk 0:02:55]} 8. Bb5 {[%clk 0:02:49]}  O-O {[%clk 0:02:51]} 9. Bxc6 {[%clk 0:02:48]}  bxc6 {[%clk 0:02:52]} 10. f4 {[%clk 0:02:31]}  cxd4 {[%clk 0:02:48]} 11. exd4 {[%clk 0:02:32]}  c5 {[%clk 0:02:48]} 12. O-O {[%clk 0:01:57]}  cxd4 {[%clk 0:02:46]} 13. Nb3 {[%clk 0:01:40]}  Ne4 {[%clk 0:02:43]} 14. Qxd4 {[%clk 0:01:35]}  Rb8 {[%clk 0:02:28]} 15. Rac1 {[%clk 0:01:15]}  Ba6 {[%clk 0:01:55]} 16. Rfe1 {[%clk 0:01:06]}  Nxg3 {[%clk 0:01:43]} 17. hxg3 {[%clk 0:01:05]}  Rfc8 {[%clk 0:01:36]} 18. Kh2 {[%clk 0:00:56]}  Rb4 {[%clk 0:01:15]} 19. Qf2 {[%clk 0:00:45]}  Re4 {[%clk 0:01:04]} 20. Nd3 {[%clk 0:00:25]}  Ra4 {[%clk 0:00:53]} 21. f5 {[%clk 0:00:17]}  Bxg3+ {[%clk 0:00:47]} 22. Qxg3 {[%clk 0:00:13]}  Rh4+ {[%clk 0:00:47]} 0-1


[Site "https://www.chess.com"]

[Event "Titled Tuesday Blitz August 22 Late 2023"]
[White "Willy, Stephen"]
[Black "Palacio,Igor Da Paz"]
[WhiteFideId "30981468"]
[BlackFideId "2121140"]
[WhiteElo "2563"]
[BlackElo "2236"]
[Result "1-0"]
[Round "1"]
[TimeControl "180+1"]
[Date "2023.08.22"]
[WhiteClock "0:00:56"]
[BlackClock "0:00:00"]
[Board "184"]

1. e4 {[%clk 0:02:59]}  d6 {[%clk 0:02:57]} 2. d4 {[%clk 0:02:59]}  Nf6 {[%clk 0:02:57]} 3. Nc3 {[%clk 0:02:54]}  g6 {[%clk 0:02:57]} 4. f4 {[%clk 0:02:44]}  Bg7 {[%clk 0:02:57]} 5. Nf3 {[%clk 0:02:45]}  O-O {[%clk 0:02:57]} 6. Be3 {[%clk 0:02:45]}  b6 {[%clk 0:02:56]} 7. h3 {[%clk 0:02:29]}  Bb7 {[%clk 0:02:55]} 8. e5 {[%clk 0:02:27]}  Nd5 {[%clk 0:02:54]} 9. Nxd5 {[%clk 0:02:26]}  Bxd5 {[%clk 0:02:55]} 10. h4 {[%clk 0:02:26]}  h5 {[%clk 0:02:27]} 11. Bd3 {[%clk 0:02:22]}  c5 {[%clk 0:02:03]} 12. c4 {[%clk 0:02:02]}  cxd4 {[%clk 0:01:36]} 13. cxd5 {[%clk 0:01:48]}  dxe3 {[%clk 0:01:35]} 14. e6 {[%clk 0:01:41]}  Bxb2 {[%clk 0:00:37]} 15. Rb1 {[%clk 0:01:33]}  Bc3+ {[%clk 0:00:35]} 16. Ke2 {[%clk 0:01:33]}  Kg7 {[%clk 0:00:29]} 17. exf7 {[%clk 0:01:31]}  Rxf7 {[%clk 0:00:20]} 18. Ng5 {[%clk 0:01:22]}  Qd7 {[%clk 0:00:16]} 19. Ne6+ {[%clk 0:01:14]}  Kh6 {[%clk 0:00:16]} 20. Qc2 {[%clk 0:01:07]}  Bd4 {[%clk 0:00:04]} 21. Bxg6 {[%clk 0:01:02]}  Rf6 {[%clk 0:00:04]} 22. Bxh5 {[%clk 0:00:58]}  Na6 {[%clk 0:00:00]} 23. g4 {[%clk 0:00:56]} 1-0


[Site "https://www.chess.com"]

[Event "Titled Tuesday Blitz August 22 Late 2023"]
[White "Andreassen, Lars"]
[Black "Kozusek, Daniel"]
[WhiteFideId "1504878"]
[BlackFideId "349500"]
[WhiteElo "2208"]
[BlackElo "2556"]
[Result "0-1"]
[Round "1"]
[TimeControl "180+1"]
[Date "2023.08.22"]
[WhiteClock "0:00:00"]
[BlackClock "0:00:21"]
[Board "189"]

1. d4 {[%clk 0:03:00]}  d5 {[%clk 0:02:59]} 2. Nf3 {[%clk 0:03:01]}  Nf6 {[%clk 0:02:59]} 3. c4 {[%clk 0:03:02]}  e6 {[%clk 0:02:59]} 4. Nc3 {[%clk 0:03:03]}  Bb4 {[%clk 0:02:57]} 5. Bg5 {[%clk 0:03:03]}  dxc4 {[%clk 0:02:54]} 6. e4 {[%clk 0:03:01]}  c5 {[%clk 0:02:54]} 7. e5 {[%clk 0:02:59]}  cxd4 {[%clk 0:02:54]} 8. Nxd4 {[%clk 0:02:55]}  Qa5 {[%clk 0:02:51]} 9. exf6 {[%clk 0:02:38]}  Bxc3+ {[%clk 0:02:37]} 10. bxc3 {[%clk 0:02:37]}  Qxg5 {[%clk 0:02:38]} 11. fxg7 {[%clk 0:02:35]}  Qxg7 {[%clk 0:02:39]} 12. Qf3 {[%clk 0:02:13]}  Nd7 {[%clk 0:02:30]} 13. Bxc4 {[%clk 0:02:11]}  Ne5 {[%clk 0:02:30]} 14. Bb5+ {[%clk 0:02:12]}  Ke7 {[%clk 0:02:22]} 15. Qg3 {[%clk 0:02:05]}  Qxg3 {[%clk 0:02:14]} 16. hxg3 {[%clk 0:02:05]}  a6 {[%clk 0:02:10]} 17. Be2 {[%clk 0:02:03]}  Bd7 {[%clk 0:02:10]} 18. f4 {[%clk 0:01:55]}  Nc6 {[%clk 0:02:09]} 19. Bf3 {[%clk 0:01:46]}  Rac8 {[%clk 0:01:48]} 20. Kd2 {[%clk 0:01:27]}  Nxd4 {[%clk 0:01:35]} 21. cxd4 {[%clk 0:01:28]}  Rc4 {[%clk 0:01:33]} 22. Bxb7 {[%clk 0:01:22]}  Rxd4+ {[%clk 0:01:31]} 23. Ke3 {[%clk 0:01:22]}  Ra4 {[%clk 0:01:29]} 24. Be4 {[%clk 0:00:58]}  Rc8 {[%clk 0:01:11]} 25. Rac1 {[%clk 0:00:46]}  Ra3+ {[%clk 0:01:05]} 26. Kd4 {[%clk 0:00:34]}  Rd8 {[%clk 0:01:00]} 27. Rc7 {[%clk 0:00:26]}  f5 {[%clk 0:00:24]} 28. Rxh7+ {[%clk 0:00:22]}  Kd6 {[%clk 0:00:24]} 29. Rc2 {[%clk 0:00:00]}  Ra4+ {[%clk 0:00:21]} 0-1


[Site "https://www.chess.com"]